Cogmind - Beta 13 @@@ ROGUE MODE // 2024.04.15 @ 04:40:17 Player: Zaros426 Result: Destroyed by S-27 Virus with Autogun Performance ------------- Evolutions (5) 2500 Regions Visited (9) 1800 Robots Destroyed (100) 500 Value Destroyed (3248) 3248 Prototype IDs (5) 100 Alien Tech Used (0) 0 Bonus (1419) 1419 TOTAL SCORE: 9567 Bonus ------- High Alert Combat Kills 388 Follower Combat Kills 531 Entered DSFs 500 Cogmind --------- Core Integrity 0/1000 Matter 187/300 Energy 42/100 System Corruption 24% Temperature Cool (0) Movement Core (50) Location -5/Factory Parts ------- > --- POWER (2) -------- (None) > --- PROPULSION (3) --- (None) > --- UTILITY (10) ----- Advanced Weight Redist. System > --- WEAPON (2) ------- Lance > --- INVENTORY (5) ---- Neutrino Core Improved Cryofiber Web Huge Storage Unit Heavy Gatling Laser Peak State ------------ > --- POWER ------------ Neutrino Core Neutrino Core > --- PROPULSION ------- Heavy Treads Wheel > --- UTILITY ---------- Advanced Heat Sink Medium Storage Unit Heavy Armor Plating Hardened Heavy Armor Plating Improved Medium Armor Plating Improved Medium Armor Plating Layered Light Armor Plating Force Field > --- WEAPON ----------- High-powered Shock Rifle Enhanced Gauss Cannon > --- INVENTORY -------- Neutrino Core Hardened Light Armor Plating Hardened Medium Armor Plating Hardened Medium Armor Plating Hardened Medium Armor Plating Hardened Medium Armor Plating Improved Medium Armor Plating Improved Grenade Launcher [Rating: 75] Favorites ----------- Power Heavy Deuterium Engine Engine Heavy Deuterium Engine Power Core Neutrino Core Propulsion Wheel Treads Heavy Treads Leg Aluminum Leg Wheel Wheel Flight Unit Improved Surge Thruster Utility Improved Medium Armor Plating Device Improved Sensor Array Storage Large Storage Unit Processor Signal Interpreter Protection Improved Medium Armor Plating Weapon Improved Grenade Launcher Energy Gun Variable Charge Gun Energy Cannon EM Pulse Cannon Ballistic Gun Assault Rifle Ballistic Cannon Enhanced Gauss Cannon Launcher Improved Grenade Launcher Piercing Weapon Lance Build | -11 -10 -9 -8 -7 -7 -7 -6 -6 -5 ------- Run | Yrd Mat Mat Mat Fac Was Fac Fac DSF Fac Slots Evolved 10 | . . 2 2 2 . . 2 . 2 Power 1 | . . . . . . . . . 1 Propulsion 1 | . . . . . . . . . 1 Utility 8 | . . 2 2 2 . . 2 . . Weapon . | . . . . . . . . . . Parts Attached 154 | 5 13 24 33 10 8 2 2 1 56 Power 17 | 1 2 3 2 1 . . . . 8 Engine 11 | 1 2 3 2 1 . . . . 2 Core 6 | . . . . . . . . . 6 Reactor . | . . . . . . . . . . Propulsion 40 | 2 2 4 13 2 1 . . . 16 Treads 16 | . 2 . 7 1 1 . . . 5 Leg 3 | 2 . . . . . . . . 1 Wheel 19 | . . 4 6 1 . . . . 8 Hover . | . . . . . . . . . . Flight 2 | . . . . . . . . . 2 Utility 68 | 1 7 13 12 6 3 2 2 1 21 Device 15 | 1 . 1 2 . . 1 . . 10 Storage 7 | . 3 1 . 1 . . . 1 1 Processor 1 | . 1 . . . . . . . . Hackware . | . . . . . . . . . . Protection 45 | . 3 11 10 5 3 1 2 . 10 Artifact . | . . . . . . . . . . Weapon 29 | 1 2 4 6 1 4 . . . 11 Energy Gun 3 | . . . 1 . 1 . . . 1 Energy Cannon 3 | . . . 3 . . . . . . Ballistic Gun 6 | 1 1 2 1 1 . . . . . Ballistic Cannon 4 | . . . 1 . . . . . 3 Launcher 10 | . 1 2 . . 3 . . . 4 Special Weapon . | . . . . . . . . . . Impact Weapon . | . . . . . . . . . . Slashing Weapon . | . . . . . . . . . . Piercing Weapon 3 | . . . . . . . . . 3 Special Melee Weapon . | . . . . . . . . . . Unidentified Prototypes 3 | . . 1 1 1 . . . . . Corrupted Parts 2 | . . . 1 . . . . . 1 System Corruption 5 | . . . 1 . . . . . 4 Parts Lost 52 | . . 14 3 . 4 . . . 31 Power 5 | . . 1 . . . . . . 4 Propulsion 15 | . . 4 1 . . . . . 10 Utility 24 | . . 5 1 . 4 . . . 14 Weapon 8 | . . 4 1 . . . . . 3 Highest Loss Streak 13 | . . 9 3 . 4 . . . 13 To Critical Strikes . | . . . . . . . . . . Average Slot Usage (%) 78 | . 94 83 96 94 62 68 66 72 69 Engine 6 | . 14 8 9 7 7 7 6 6 2 Core 1 | . . . . . . . . . 4 Treads 7 | . 18 10 6 9 7 7 6 6 3 Leg 1 | . 9 . . . . . . . . Wheel 4 | . . 8 11 4 . . . . 5 Device 6 | . 4 . 2 15 3 3 6 6 9 Storage 5 | . 8 10 9 7 1 . . 5 4 Processor 5 | . 1 11 9 7 7 7 6 6 1 Protection 23 | . 13 17 31 25 19 26 26 26 24 Energy Gun 2 | . . . 3 . 4 7 6 6 3 Energy Cannon 2 | . . . 10 7 1 . . . . Ballistic Gun 3 | . 14 8 3 6 . . . . . Launcher 4 | . 9 6 . . 6 7 6 6 2 Naked Turns . | . . . . . . . . . . Heaviest Build 114 | 6 46 43 58 72 75 69 69 74 114 Greatest Support 70 | 20 40 40 42 40 70 70 70 70 70 Greatest Overweight (x) 24 | . 2 3 4 5 6 . . 24 10 Average Overweight (x) 1 | . . . 2 3 . . . 1 3 Largest Inventory Capacity 20 | 5 20 15 15 15 15 5 5 8 10 Average Capacity 10 | 5 11 14 15 15 7 5 5 7 8 Most Carried 15 | 3 9 13 15 15 15 5 5 8 10 Average Carried 7 | 1 5 8 13 14 4 5 4 6 7 Final Capacity 15 | 5 15 15 15 15 5 5 5 8 5 Final Carried 15 | 3 9 11 15 15 5 5 5 8 4 Class Distribution -------------------- 64% | Mutant 34% | Scavenger-Mutant Dominant Class ---------------- Mutant | -10/Materials Mutant | -9/Materials Mutant | -8/Materials Scavenger-Mutant | -7/Factory Mutant | -7/Waste Mutant | -7/Factory Mutant | -6/Factory Mutant | -6/DSF Scavenger-Mutant | -5/Factory Resources | -11 -10 -9 -8 -7 -7 -7 -6 -6 -5 ----------- Run | Yrd Mat Mat Mat Fac Was Fac Fac DSF Fac Matter Collected 3306 | 247 107 433 487 345 486 . . 199 1002 Remotely . | . . . . . . . . . . Salvage Created 4203 | 39 175 350 575 335 1353 . . . 1376 Parts 179 | 4 19 31 34 11 3 . . . 77 Haulers Intercepted 2 | . . . 2 . . . . . . Recyclers Shooed 6 | . 1 2 1 . . . . . 2 Parts Field Recycled . | . . . . . . . . . . Retrieved Matter . | . . . . . . . . . . Parts Self-Destructed . | . . . . . . . . . . Prevented . | . . . . . . . . . . Kills | -11 -10 -9 -8 -7 -7 -7 -6 -6 -5 ------- Run | Yrd Mat Mat Mat Fac Was Fac Fac DSF Fac Combat Hostiles Destroyed 71 | . 8 10 8 5 6 . . . 34 Melee 2 | . . . . . . . . . 2 Guns 13 | . 3 7 . 2 . . . . 1 Cannons 17 | . . . 8 2 . . . . 7 AOE 37 | . 5 3 . . 6 . . . 23 Classes Destroyed 15 | 2 4 1 2 2 1 . . . 3 Worker 9 | 1 1 2 2 . . . . . 3 Builder 10 | . 1 3 . . . . . . 6 Tunneler 2 | 1 . . 1 . . . . . . Hauler 2 | . . . 2 . . . . . . Recycler 2 | . . . . 1 . . . . 1 Watcher 4 | . 2 . 2 . . . . . . Swarmer 15 | . 6 4 . 1 . . . . 4 Cutter 3 | . . . . . . . . . 3 Grunt 26 | . 2 2 4 1 . . . . 17 Brawler 1 | . . . . . . . . . 1 Duelist 4 | . . . 1 1 . . . . 2 Sentry 8 | . . 4 3 1 . . . . . Hunter 1 | . . . . . . . . . 1 Programmer 7 | . . . . 1 . . . . 6 Compactor 6 | . . . . . 6 . . . . Best Kill Streak 10 | 1 5 7 4 3 4 . . . 10 Combat Bots Only 9 | . 3 5 1 2 4 . . . 9 Max Kills in Single Turn 4 | 1 2 3 1 1 1 . . . 4 Gunslinging . | . . . . . . . . . . Exploded 4 | . 2 2 . . 1 . . . 4 Melee 1 | . . . . . . . . . 1 Uniques/NPCs Destroyed . | . . . . . . . . . . Combat | -11 -10 -9 -8 -7 -7 -7 -6 -6 -5 -------- Run | Yrd Mat Mat Mat Fac Was Fac Fac DSF Fac Hostile Shots Fired 821 | . 51 163 103 58 14 . . . 432 Missed 221 | . 19 50 23 18 . . . . 111 Damage Taken 11418 | . 447 1547 1429 465 1460 . . 373 5697 Core 2103 | . 61 334 173 38 108 . . 373 1016 Absorbed by Shields 985 | . . . . . . . . . 985 Reduced by Siege Mode 77 | . . . . . 16 . . . 61 Regen/Repaired (Parts) 913 | . . . 75 . 210 . . . 628 Core Remaining (%) 65 | 100 75 16 68 . . 79 . 56 . Volleys Fired 271 | 10 33 33 51 19 35 . . . 90 Largest 2 | 1 1 1 2 2 1 . . . 2 Hottest 225 | 20 30 30 138 88 36 . . . 225 Shots Fired 285 | 10 33 33 54 24 35 . . . 96 Gun 103 | 10 27 25 . 11 . . . . 30 Cannon 113 | . . . 54 13 . . . . 46 Launcher 69 | . 6 8 . . 35 . . . 20 Special . | . . . . . . . . . . Kinetic 138 | 10 27 25 19 11 . . . . 46 Thermal 17 | . . . 7 . . . . . 10 Explosive 69 | . 6 8 . . 35 . . . 20 Electromagnetic 61 | . . . 28 13 . . . . 20 Robot Hit Streak 25 | 5 14 9 7 25 16 . . . 15 Robot Miss Streak 3 | 3 2 2 2 1 1 . . . 2 Penetration Max 1 | . . . . . . . . . 1 Secondary Targets . | . . . . . . . . . . Shots Hit Robots 212 | 6 22 21 39 21 28 . . . 75 Core Hits 171 | 2 18 22 19 9 19 . . . 82 Critical Kills 1 | . . 1 . . . . . . . Critical Parts Destroyed 1 | . . . . 1 . . . . . Critical Strikes 11 | . . 1 . 1 . . . . 9 Destroy 2 | . . 1 . 1 . . . . . Blast 7 | . . . . . . . . . 7 Corrupt 1 | . . . . . . . . . 1 Impale 1 | . . . . . . . . . 1 Melee Attacks 25 | . . . . . . . . . 25 Impact . | . . . . . . . . . . Slashing . | . . . . . . . . . . Piercing 25 | . . . . . . . . . 25 Sneak Attacks . | . . . . . . . . . . Combat Hostiles . | . . . . . . . . . . Follow-up Attacks . | . . . . . . . . . . Damage Inflicted 11980 | 76 641 733 1097 450 3902 . . . 5081 Guns 1318 | 76 270 247 . 167 . . . . 558 Cannons 2511 | . . . 1056 283 . . . . 1172 Explosions 7766 | . 371 476 41 . 3902 . . . 2976 Melee 375 | . . . . . . . . . 375 Ramming 10 | . . 10 . . . . . . . Kinetic 2248 | 76 270 247 339 167 . . . . 1149 Thermal 427 | . . . 141 . . . . . 286 Explosive 7725 | . 371 476 . . 3902 . . . 2976 Electromagnetic 1172 | . . . 617 283 . . . . 272 Impact 23 | . . . . . . . . . 23 Slashing . | . . . . . . . . . . Piercing 375 | . . . . . . . . . 375 Highest Corruption 24 | . 3 . 1 1 1 1 . . 24 Average Corruption 5 | . 2 . 1 1 1 1 . . 9 Corruption Purged . | . . . . . . . . . . Corruption Blocked 8 | . . . . . . . . . 8 Effects 52 | . 4 . . . 7 3 . . 38 Message Errors 13 | . 1 . . . 2 . . . 10 Matter Fused 12 | . . . . . 1 . . . 11 Heat Flow Errors 2 | . 1 . . . . 1 . . . Energy Discharges 9 | . . . . . 2 1 . . 6 Parts Rejected 3 | . 2 . . . . . . . 1 Data Loss (minor) 6 | . . . . . . 1 . . 5 Data Loss (major) 1 | . . . . . 1 . . . . Misfires 1 | . . . . . . . . . 1 Alerts 1 | . . . . . 1 . . . . Misdirections 4 | . . . . . . . . . 4 Overload Shots 2 | . . . . . . . . . 2 Overflow Damage 163 | . 17 8 24 . 39 . . . 75 Projectiles 41 | . . . 24 . . . . . 17 Explosions 116 | . 17 8 . . 39 . . . 52 Melee 6 | . . . . . . . . . 6 Knockbacks 15 | . . . 7 . . . . . 8 Impact . | . . . . . . . . . . Kinetic 15 | . . . 7 . . . . . 8 Secondary . | . . . . . . . . . . Self-Inflicted Damage 1295 | . 75 53 . . 843 . . . 324 Shots 38 | . 3 3 . . 20 . . . 12 Rammed 1 | . . 1 . . . . . . . Targets Rammed 1 | . . 1 . . . . . . . Kicked . | . . . . . . . . . . Crushed . | . . . . . . . . . . Highest Temperature 1576 | . 133 74 395 88 49 269 3 1576 408 Average Temperature 168 | . 20 36 165 32 24 193 2 555 128 Received Heat Transfer 1988 | . 132 570 621 93 . . . . 572 Effects 38 | . . . 5 . . . . 30 3 Shutdowns 7 | . . . 1 . . . . 4 2 Energy Bleed 3 | . . . . . . . . 3 . Interference 5 | . . . 3 . . . . 2 . Matter Decay 6 | . . . 1 . . . . 5 . Short Circuit 3 | . . . . . . . . 2 1 Damage (minor) 2 | . . . . . . . . 2 . Damage (major) 9 | . . . . . . . . 9 . Damage (core) 3 | . . . . . . . . 3 . Siege Activations 5 | . . . . . 2 . . . 3 Total Turns 110 | . . . . . 38 . . . 72 Longest Duration 36 | . . . . . 36 . . . 28 Robots Corrupted 2 | . . . . 1 . . . . 1 Combat Hostiles 2 | . . . . 1 . . . . 1 Parts Fried 9 | . . . 3 5 . . . . 1 Impact Corruptions . | . . . . . . . . . . Robots Melted . | . . . . . . . . . . Combat Hostiles . | . . . . . . . . . . Parts Melted 1 | . . . . . . . . . 1 Heat Transferred 594 | . . . 198 . . . . . 396 Parts Sabotaged . | . . . . . . . . . . Parts Stolen . | . . . . . . . . . . Parts Stripped . | . . . . . . . . . . Power Chain Reactions 1 | . . . 1 . . . . . . Alert | -11 -10 -9 -8 -7 -7 -7 -6 -6 -5 ------- Run | Yrd Mat Mat Mat Fac Was Fac Fac DSF Fac Peak Influence 849 | 10 230 346 336 232 46 20 9 358 849 Initial 187 | . 6 96 103 63 11 . 9 6 187 Average 253 | 2 58 216 222 139 11 15 9 283 533 Maximum Alert Level 3 | . 1 1 1 1 . . . 1 3 Low Security (%) 51 | 100 89 34 40 65 100 100 100 15 14 Level 1 28 | . 10 65 59 34 . . . 84 23 Level 2 7 | . . . . . . . . . 23 Level 3 12 | . . . . . . . . . 38 Level 4 . | . . . . . . . . . . Level 5 . | . . . . . . . . . . High Security . | . . . . . . . . . . Max Security . | . . . . . . . . . . Sterilizations 1 | . . . . . . . . 1 . Squads Dispatched 22 | . 1 1 2 1 . . . 2 15 Investigation 5 | . . . 2 . . . . . 3 Extermination 5 | . . . . 1 . . . . 4 Reinforcement 8 | . 1 1 . . . . . 2 4 Assault 1 | . . . . . . . . . 1 Garrison 3 | . . . . . . . . . 3 Intercept . | . . . . . . . . . . Searches Triggered . | . . . . . . . . . . Construction Impeded 1 | . . . . . . . . . 1 Haulers Reinforced . | . . . . . . . . . . Active Scanning Responses . | . . . . . . . . . . Cargo Convoy Interrupts 1 | . . . . . . . . . 1 Stealth | -11 -10 -9 -8 -7 -7 -7 -6 -6 -5 --------- Run | Yrd Mat Mat Mat Fac Was Fac Fac DSF Fac Distress Signals 1 | . . 1 . . . . . . . Communications Jammed . | . . . . . . . . . . Distress Signals . | . . . . . . . . . . Times Spotted 121 | . 16 17 13 6 6 . . 3 60 Peak Tracking Total 13 | . 4 8 3 3 4 . . 2 13 Tactical Retreats 8 | . . 2 1 1 . . . . 4 Traps | -11 -10 -9 -8 -7 -7 -7 -6 -6 -5 ------- Run | Yrd Mat Mat Mat Fac Was Fac Fac DSF Fac Traps Triggered 5 | . 2 . . 2 . . . . 1 Indirectly . | . . . . . . . . . . Trap Hack Attempts . | . . . . . . . . . . Triggered . | . . . . . . . . . . Disarmed . | . . . . . . . . . . Reprogrammed . | . . . . . . . . . . Reused . | . . . . . . . . . . Traps Extracted . | . . . . . . . . . . Installed . | . . . . . . . . . . Triggered 1 | . . . . . . . . . 1 Machines | -11 -10 -9 -8 -7 -7 -7 -6 -6 -5 ---------- Run | Yrd Mat Mat Mat Fac Was Fac Fac DSF Fac Machines Disabled 9 | . 2 2 2 . . . . 1 2 Max in Single Turn 2 | . 2 2 1 . . . . . 1 Machines Repaired . | . . . . . . . . . . Machines Dismantled . | . . . . . . . . . . Machines Sabotaged . | . . . . . . . . . . Overloaded Fab Kills . | . . . . . . . . . . Hacking | -11 -10 -9 -8 -7 -7 -7 -6 -6 -5 --------- Run | Yrd Mat Mat Mat Fac Was Fac Fac DSF Fac Machines Accessed 22 | . 3 3 7 2 . 1 1 . 5 Terminals 11 | . 2 2 4 1 . . 1 . 1 Fabricators . | . . . . . . . . . . Repair Stations 3 | . . . 1 . . . . . 2 Recycling Units 2 | . 1 1 . . . . . . . Scanalyzers 5 | . . . 2 1 . 1 . . 1 Garrison Access 1 | . . . . . . . . . 1 Total Hacks 68 | . 9 4 28 6 . 5 2 . 14 Successful 44 | . 1 3 23 5 . 3 1 . 8 Failed 24 | . 8 1 5 1 . 2 1 . 6 Catastrophic 1 | . . . . . . . . . 1 Database Lockouts . | . . . . . . . . . . Manual 1 | . . . . . . . . . 1 Terminals 28 | . 5 2 14 2 . . 2 . 3 Fabricators . | . . . . . . . . . . Repair Stations 9 | . . . 2 . . . . . 7 Recycling Units 6 | . 4 2 . . . . . . . Scanalyzers 24 | . . . 12 4 . 5 . . 3 Garrison Access 1 | . . . . . . . . . 1 Terminal Hacks 15 | . 1 2 9 1 . . 1 . 1 Record 4 | . . . 3 1 . . . . . Prototype ID Bank 1 | . . . 1 . . . . . . Open DSF 1 | . . . . . . . 1 . . Emergency Access Points 1 | . 1 . . . . . . . . Locate Traps 2 | . . 1 1 . . . . . . Maintenance Status 2 | . . 1 1 . . . . . . Hauler Manifests 1 | . . . 1 . . . . . . Zone Layout 3 | . . . 2 . . . . . 1 Fabricator Hacks . | . . . . . . . . . . Repair Station Hacks 6 | . . . 2 . . . . . 4 Scan Component 3 | . . . 1 . . . . . 2 Repair 3 | . . . 1 . . . . . 2 Recycling Unit Hacks 1 | . . 1 . . . . . . . Retrieve Components 1 | . . 1 . . . . . . . Scanalyzer 22 | . . . 12 4 . 3 . . 3 Insert Component 9 | . . . 5 2 . 1 . . 1 Analyze 13 | . . . 7 2 . 2 . . 2 Garrison Access Hacks . | . . . . . . . . . . Unauthorized Hacks . | . . . . . . . . . . Terminals . | . . . . . . . . . . Fabricators . | . . . . . . . . . . Repair Stations . | . . . . . . . . . . Recycling Units . | . . . . . . . . . . Scanalyzers . | . . . . . . . . . . Garrison Access . | . . . . . . . . . . Data Cores Recovered . | . . . . . . . . . . Used . | . . . . . . . . . . Hacking Detections 16 | . 3 1 4 2 . . 1 . 5 Full Trace Events 4 | . . . 1 . . . . . 3 Feedback Events . | . . . . . . . . . . Feedback Blocked . | . . . . . . . . . . Robot Schematics Acquired . | . . . . . . . . . . Robots Built . | . . . . . . . . . . Authchips . | . . . . . . . . . . Time . | . . . . . . . . . . Total Robot Build Rating . | . . . . . . . . . . Part Schematics Acquired 9 | . . . 5 2 . 1 . . 1 Parts Built . | . . . . . . . . . . Authchips . | . . . . . . . . . . Time . | . . . . . . . . . . Total Part Build Rating . | . . . . . . . . . . Parts Repaired 3 | . . . 1 . . . . . 2 Time 117 | . . . 51 . . . . . 66 Parts Recycled . | . . . . . . . . . . Recycled Matter . | . . . . . . . . . . Retrieved Matter . | . . . . . . . . . . Retrieved Components 3 | . . 3 . . . . . . . Parts Scanalyzed 9 | . . . 5 2 . 1 . . 1 Part Schematics Acquired 9 | . . . 5 2 . 1 . . 1 Parts Damaged 2 | . . . . 1 . . . . 1 Bothacking | -11 -10 -9 -8 -7 -7 -7 -6 -6 -5 ------------ Run | Yrd Mat Mat Mat Fac Was Fac Fac DSF Fac Used RIF Installer . | . . . . . . . . . . Robots Hacked . | . . . . . . . . . . Non-combat . | . . . . . . . . . . Combat . | . . . . . . . . . . Robot Hacks Applied . | . . . . . . . . . . Relay Couplers Released . | . . . . . . . . . . Fabnet Peak Effective % . | . . . . . . . . . . Robots Rewired . | . . . . . . . . . . Allies Hacked . | . . . . . . . . . . Hacks Repelled . | . . . . . . . . . . Allies | -11 -10 -9 -8 -7 -7 -7 -6 -6 -5 -------- Run | Yrd Mat Mat Mat Fac Was Fac Fac DSF Fac Total Allies 19 | . . . . . 19 . . . . Largest Group 19 | . . . . . 19 19 19 19 4 Highest-Rated Group 465 | . . . . . 465 465 465 465 122 Highest-Rated Ally 35 | . . . . . 35 35 35 35 31 Total Orders 1 | . . . . . . . . . 1 EXPLORE 1 | . . . . . . . . . 1 Ally Attacks 124 | . . . . . . 17 . 64 43 Total Damage 3031 | . . . . . . 117 . 2221 693 Kills 16 | . . . . . . 1 . 11 4 Allies Corrupted 1 | . . . . . . . . . 1 Allies Melted . | . . . . . . . . . . Intel | -11 -10 -9 -8 -7 -7 -7 -6 -6 -5 ------- Run | Yrd Mat Mat Mat Fac Was Fac Fac DSF Fac Robot Analysis Total . | . . . . . . . . . . Derelict Logs Recovered . | . . . . . . . . . . Drone Launches 3 | . . . . . . . . . 3 Drone Recoveries . | . . . . . . . . . . Exploration | -11 -10 -9 -8 -7 -7 -7 -6 -6 -5 ------------- Run | Yrd Mat Mat Mat Fac Was Fac Fac DSF Fac Turns Passed 6262 | 103 746 578 805 476 845 290 131 249 2039 Spaces Moved 3406 | 67 353 366 391 203 400 167 74 101 1284 Core 354 | 10 . . . . . . . 1 343 Treads 1265 | . 244 145 37 54 366 167 74 100 78 Legs 166 | 57 109 . . . . . . . . Wheels 1382 | . . 221 354 149 34 . . . 624 Hover . | . . . . . . . . . . Flight 239 | . . . . . . . . . 239 Fastest Speed 29 | 50 120 80 115 150 160 160 160 160 29 Average Speed 144 | 109 178 124 134 186 164 160 160 243 122 Slowest Speed 1250 | 120 260 240 330 245 240 160 160 1250 240 Overloaded Moves . | . . . . . . . . . . Propulsion Burnouts . | . . . . . . . . . . Robots Hopped . | . . . . . . . . . . Cave-ins Triggered . | . . . . . . . . . . Exploration Rate (%) 32 | 5 53 31 40 6 96 4 2 65 24 Regions Visited 9 Branch Regions . Pre-discovered Areas . | . . . . . . . . . . Known Exits Taken 5 | . 1 1 1 . . 1 1 . . Unknown Exits Taken 1 | 1 . . . . . . . . . Scrap Searched . | . . . . . . . . . . Spaces Dug 15 | . . . . . . . . . 15 Terrain Destroyed 364 | . 31 96 4 . 87 . . . 146 Melee 6 | . . . . . . . . . 6 Projectile 18 | . . . 1 . . . . . 17 AOE 340 | . 31 96 3 . 87 . . . 123 Terrain Rammed . | . . . . . . . . . . Walls Destroyed . | . . . . . . . . . . Machines Disabled . | . . . . . . . . . . Actions | -11 -10 -9 -8 -7 -7 -7 -6 -6 -5 --------- Run | Yrd Mat Mat Mat Fac Was Fac Fac DSF Fac Total 4420 | 84 432 452 613 290 552 189 88 104 1616 Wait 391 | . 12 10 103 24 96 21 11 . 114 Move 3398 | 66 352 365 390 203 399 166 73 100 1284 Hop . | . . . . . . . . . . Pick Up 102 | 3 16 18 19 14 9 . . 3 20 Fast Attach 46 | 5 4 . 5 2 2 2 . 1 25 Attach 60 | . 1 16 9 4 5 . 2 . 23 Detach 11 | . . . 1 1 . . 2 . 7 Swap 48 | . 8 8 19 4 1 . . . 8 Drop 67 | . 6 1 16 19 5 . . . 20 Fire 271 | 10 33 33 51 19 35 . . . 90 Melee 25 | . . . . . . . . . 25 Ram 1 | . . 1 . . . . . . . Kick . | . . . . . . . . . . Crush . | . . . . . . . . . . Escape Stasis . | . . . . . . . . . . Rewire . | . . . . . . . . . . Trap . | . . . . . . . . . . Miscellaneous . | . . . . . . . . . . Route ------- -11/Scrapyard -10/Materials (discovered 2 exits: *Mat / *Min) -9/Materials -8/Materials (discovered 2 exits: *Fac / *Sto) -7/Factory -7/Waste -7/Factory -6/Factory -6/DSF -5/Factory History --------- Turn | Location | Event 4 | -11/Scrapyard | Discovered new exit (range 15) 104 | -11/Scrapyard | Entered Materials 314 | -10/Materials | Build established: Mutant 412 | -10/Materials | Discovered new exit (range 4) 637 | -10/Materials | Discovered new exit (range 14) 805 | -10/Materials | Identified exit to Mines 846 | -10/Materials | Identified exit to Materials 850 | -10/Materials | Entered another Materials area 850 | -9/Materials | Evolved 2 slots: Utility x2 1174 | -9/Materials | Lost 9 parts (1p2n4u2w) 1182 | -9/Materials | Core integrity fell below 50% 1324 | -9/Materials | Core integrity fell below 20% 1350 | -9/Materials | Lost 3 parts (1n1u1w) 1414 | -9/Materials | Discovered new exit (range 8) 1420 | -9/Materials | Identified exit to Materials 1428 | -9/Materials | Entered another Materials area 1428 | -8/Materials | Evolved 2 slots: Utility x2 1793 | -8/Materials | Repaired Hvy. Ion Engine 2063 | -8/Materials | Lost 3 parts (1n1u1w) 2186 | -8/Materials | Discovered new exit (range 7) 2207 | -8/Materials | Discovered new exit (range 10) 2210 | -8/Materials | Identified exit to Storage 2222 | -8/Materials | Identified exit to Factory 2233 | -8/Materials | Entered Factory 2233 | -7/Factory | Evolved 2 slots: Utility x2 2419 | -7/Factory | Build established: Scavenger-Mutant 2709 | -7/Factory | Sucked down chute 2709 | -7/Factory | Entered Waste 2756 | -7/Waste | Spotted C-40 Crusher 2761 | -7/Waste | Destroyed C-40 Crusher 2775 | -7/Waste | Spotted C-40 Crusher 2780 | -7/Waste | Spotted C-40 Crusher 2780 | -7/Waste | Spotted C-40 Crusher 2786 | -7/Waste | Destroyed C-40 Crusher 2792 | -7/Waste | Spotted C-40 Crusher 2798 | -7/Waste | Destroyed C-40 Crusher 2804 | -7/Waste | Destroyed C-40 Crusher 2814 | -7/Waste | Destroyed C-40 Crusher 2842 | -7/Waste | Spotted C-40 Crusher 2882 | -7/Waste | Crushed by Compactor (1 part destroyed, 1 dropped) 2902 | -7/Waste | Crushed by Compactor (0 parts destroyed, 1 dropped) 2917 | -7/Waste | Crushed by Compactor (0 parts destroyed, 1 dropped) 2923 | -7/Waste | Crushed by Compactor (0 parts destroyed, 1 dropped) 2928 | -7/Waste | Destroyed C-40 Crusher 2936 | -7/Waste | Lost 4 parts (4u) 3136 | -7/Waste | Warlord forces began an assault 3205 | -7/Waste | Build established: Mutant 3428 | -7/Waste | Discovered new exit (range 16) 3540 | -7/Waste | Identified exit to Factory 3550 | -7/Waste | Found Heavy Servo Lattice 3554 | -7/Waste | Entered Factory 3554 | -7/Factory | Accompanied by 19 allies 3786 | -7/Factory | Discovered new exit (range 15) 3809 | -7/Factory | Identified exit to Factory 3844 | -7/Factory | Entered another Factory area 3844 | -6/Factory | Accompanied by 19 allies 3844 | -6/Factory | Evolved 2 slots: Utility x2 3884 | -6/Factory | Identified exit to DSF 3975 | -6/Factory | Entered DSF 3975 | -6/DSF | Accompanied by 19 allies 3998 | -6/DSF | Additional patrols routed to DSF 4014 | -6/DSF | Discovered new exit (range 13) 4039 | -6/DSF | Lost 8 allies 4114 | -6/DSF | Sterilization system engaged 4134 | -6/DSF | Ambient heat levels rising (+10) 4149 | -6/DSF | Ambient heat levels rising (+10) 4164 | -6/DSF | Ambient heat levels rising (+10) 4179 | -6/DSF | Ambient heat levels rising (+10) 4194 | -6/DSF | Ambient heat levels rising (+10) 4209 | -6/DSF | Ambient heat levels rising (+10) 4224 | -6/DSF | Ambient heat levels rising (+10) 4224 | -6/DSF | Entered Factory 4224 | -5/Factory | Accompanied by 4 allies 4224 | -5/Factory | Evolved 2 slots: Power x1, Propulsion x1 4682 | -5/Factory | Build established: Scavenger-Mutant 4809 | -5/Factory | Repaired Hvy. Armor Plating 4854 | -5/Factory | Lost 3 allies 4863 | -5/Factory | Destroyed 9 combat bots 5104 | -5/Factory | Cargo convoy interrupted 5130 | -5/Factory | Garrison activated, responded to threat 5498 | -5/Factory | Repaired Hvy. Treads 5724 | -5/Factory | First assault squad dispatched 5836 | -5/Factory | System corruption reached 10% 5937 | -5/Factory | Lost 13 parts (2p2n8u1w) 5955 | -5/Factory | Core integrity fell below 50% 6127 | -5/Factory | Core integrity fell below 20% 6157 | -5/Factory | Lost 8 parts (1p4n2u1w) 6263 | -5/Factory | Destroyed by S-27 Virus with Autogun Last Messages --------------- 06168_ Acquired Prototype Energy Gun. 06171_ Acquired Adv. Weight Redist. System. 06173_ Acquired Lance. 06175_ System corrupted: Energy discharge (-20). 06187_ ALERT: Hostiles spotted, dispatching reinforcements to Terminal F008. 06191_ System corrupted: Matter fused (-6). 06214_ Dropped Lance. 06214_ Acquired Huge Storage Unit. 06224_ ALERT: Rogue bot located, Programmers report to Factory Zone 8Z. 06231_ Slug penetrates Wall. 06236_ Acquired Mni. Drone Bay. 06237_ System corrupted: Energy discharge (-28). 06238_ Mini Drone released from Mni. Drone Bay. 06244_ Mini Drone destroyed. 06245_ Slug penetrates Mini Drone. 06245_ Mini Drone destroyed. 06245_ Slug penetrates H-66 Slayer. 06245_ Slug penetrates Mini Drone. 06249_ Dropped Mni. Drone Bay. 06249_ >> Lost connection to Mini Drone. Map ----- +----------------------------------------------------+ | | | | | | | | | | | | | | | | | | | | | | | | | | | | | | | | | | | | | | | ?????????????????????????????????????????????????? | | ?????????????????????????????????????????????????? | | ??????????#######????????????????????????????????? | | ??????????# ########################?????????? | | ########### ss ????????? | | ss ????????? | | #### ###### @ sss ????????? | | ???# #????# ##########;#######???????????????? | | ???# #?######+####????????##?????????????????????? | | ???# #?# #???????????????????????????????? | | #### #?# """"""" #???????????????????????????????? | | #?# """"""" #???????????????????????????????? | | #?# """"""" #???????????????????????????????? | | ### """"""" #???????????????????????????????? | | ### #???????????????????????????????? | | #####"#" ! #???????????????????????????????? | | ????#### /! #???????????????????????????????? | | ??????##"#########???????????????????????????????? | | #######"##???????????????????????????????????????? | | ##????????????????????????????????????????? | | ! #?????????????????????????????????????????? | | #?????????????????????????????????????????? | | !#?????????????????????????????????????????? | | ########?????????????????????????????????????????? | | ?????????????????????????????????????????????????? | | ?????????????????????????????????????????????????? | | ?????????????????????????????????????????????????? | | ?????????????????????????????????????????????????? | | ?????????????????????????????????????????????????? | | ?????????????????????????????????????????????????? | | ?????????????????????????????????????????????????? | +----------------------------------------------------+ Best States ------------- Heat Dissipation 59 Energy Generation 33 Energy Capacity 1115 Matter Stores 300 Matter Capacity 300 Sight Range 16 Robot Scan Range 15 Terrain Scan Range 16 Terrain Scan Density 10 Additional Mass Support 9 Base Temperature (-) 150 Armor Coverage 3600 Resistance: EX 50 Resistance: EM 15 Evasion (%) 64 Recoil Reduction 2 Item Schematics ----------------- Imp. Sensor Array | -8/Materials | Scanalyzed Grenade Launcher | -8/Materials | Scanalyzed Imp. Medium Armor Plating | -8/Materials | Scanalyzed Insulated Plating | -8/Materials | Scanalyzed Arm. Treads | -8/Materials | Scanalyzed Enh. Autogun | -7/Factory | Scanalyzed Lgt. Armor Plating | -7/Factory | Scanalyzed Heavy Servo Lattice | -7/Factory | Scanalyzed KE Penetrator | -5/Factory | Scanalyzed Robot Schematics ------------------ None Fabricated ------------ Nothing Alien Tech Used ----------------- None Achievements -------------- None Challenges ------------ None Game ------ Seed SubatomicSlugCarapace Manual? 0 Play Time 01:50:34 Cumulative 43.3 hours Start 2024.04.15 @ 02:49:13 End 2024.04.15 @ 04:40:17 Sessions 1 Manual Loads 0 Difficulty Rogue Special Mode None Game No. 46 Rogue 46 Adventurer 0 Explorer 0 Win Type - Total 0 Types 0/0/0/0/0/0/0/0/0 Lore% 26 Gallery% 39 Achievement% 28 Wizard Run 0 Options --------- Layout 0 ASCII 0 Keyboard 0 Movement Mouse Keybinds 0 Fullscreen 1 Font 24/Smallcaps Map View 183x50 Zoom Use 0% Tactical HUD 1 Map Filters NONE Filters NONE Steam 0 RUN: 05857f64-4403-4ab8-a783-46ccf0deabf6